[Event "Titled Tuesday Blitz February 21 Early 2023"]
[White "Karthik Rajaa"]
[Black "Novikova, Galina"]
[WhiteFideId "25035215"]
[BlackFideId "4157095"]
[WhiteElo "2276"]
[BlackElo "2073"]
[Result "1-0"]
[Round "01"]
[TimeControl "180+2"]
[Date "2023.02.21"]
[WhiteClock "0:00:33"]
[BlackClock "0:00:01"]

1. c4 {[%clk 0:02:59]}  e6 {[%clk 0:02:59]} 2. Nf3 {[%clk 0:02:56]}  f5 {[%clk 0:02:59]} 3. Nc3 {[%clk 0:02:54]}  Nf6 {[%clk 0:03:00]} 4. g3 {[%clk 0:02:54]}  Be7 {[%clk 0:02:58]} 5. Bg2 {[%clk 0:02:54]}  d6 {[%clk 0:02:58]} 6. d4 {[%clk 0:02:54]}  O-O {[%clk 0:02:57]} 7. O-O {[%clk 0:02:54]}  Qe8 {[%clk 0:02:54]} 8. Nd2 {[%clk 0:02:51]}  e5 {[%clk 0:02:47]} 9. d5 {[%clk 0:02:47]}  a5 {[%clk 0:02:28]} 10. c5 {[%clk 0:02:41]}  Na6 {[%clk 0:02:23]} 11. cxd6 {[%clk 0:02:39]}  cxd6 {[%clk 0:02:22]} 12. Nc4 {[%clk 0:02:28]}  f4 {[%clk 0:01:39]} 13. gxf4 {[%clk 0:02:22]}  Qh5 {[%clk 0:01:28]} 14. fxe5 {[%clk 0:02:10]}  Ng4 {[%clk 0:01:27]} 15. h3 {[%clk 0:02:10]}  Nxe5 {[%clk 0:01:27]} 16. Nxe5 {[%clk 0:02:04]}  Qxe5 {[%clk 0:01:28]} 17. f4 {[%clk 0:02:01]}  Qh5 {[%clk 0:01:16]} 18. e4 {[%clk 0:02:00]}  Qh4 {[%clk 0:01:16]} 19. Qe1 {[%clk 0:01:56]}  Qh5 {[%clk 0:01:16]} 20. f5 {[%clk 0:01:38]}  Nc5 {[%clk 0:01:09]} 21. Qd1 {[%clk 0:01:35]}  Qh4 {[%clk 0:01:02]} 22. Bf4 {[%clk 0:01:32]}  Bd7 {[%clk 0:00:59]} 23. Kh2 {[%clk 0:01:15]}  b5 {[%clk 0:00:52]} 24. Bg3 {[%clk 0:01:15]}  Qf6 {[%clk 0:00:49]} 25. Qd2 {[%clk 0:01:11]}  b4 {[%clk 0:00:46]} 26. Ne2 {[%clk 0:01:11]}  Bb5 {[%clk 0:00:45]} 27. Rfe1 {[%clk 0:01:01]}  Nd3 {[%clk 0:00:45]} 28. Red1 {[%clk 0:00:58]}  Nxb2 {[%clk 0:00:44]} 29. Nd4 {[%clk 0:00:55]}  Nxd1 {[%clk 0:00:33]} 30. Rxd1 {[%clk 0:00:54]}  Bd7 {[%clk 0:00:29]} 31. Ne6 {[%clk 0:00:53]}  Bxe6 {[%clk 0:00:27]} 32. dxe6 {[%clk 0:00:52]}  Rad8 {[%clk 0:00:19]} 33. Rf1 {[%clk 0:00:49]}  Qc3 {[%clk 0:00:18]} 34. Qd5 {[%clk 0:00:49]}  a4 {[%clk 0:00:12]} 35. Rf3 {[%clk 0:00:47]}  Qc2 {[%clk 0:00:10]} 36. Rf2 {[%clk 0:00:47]}  Qc3 {[%clk 0:00:10]} 37. Qb7 {[%clk 0:00:46]}  Rfe8 {[%clk 0:00:08]} 38. Qb5 {[%clk 0:00:40]}  Ra8 {[%clk 0:00:01]} 39. e5 {[%clk 0:00:34]}  Reb8 {[%clk 0:00:01]} 40. Qd7 {[%clk 0:00:33]} 1-0


[Site "https://www.chess.com"]

[Event "Titled Tuesday Blitz February 21 Early 2023"]
[White "Melikyan, Gnel"]
[Black "Petrova, Irina"]
[WhiteFideId "54109990"]
[BlackFideId "14124122"]
[WhiteElo "2238"]
[BlackElo "2108"]
[Result "1-0"]
[Round "01"]
[TimeControl "180+2"]
[Date "2023.02.21"]
[WhiteClock "0:02:12"]
[BlackClock "0:01:29"]

1. a3 {[%clk 0:02:42]}  d6 {[%clk 0:03:00]} 2. Nf3 {[%clk 0:02:41]}  g6 {[%clk 0:02:59]} 3. c4 {[%clk 0:02:40]}  Bg7 {[%clk 0:02:58]} 4. Nc3 {[%clk 0:02:41]}  e5 {[%clk 0:02:56]} 5. d4 {[%clk 0:02:41]}  Nc6 {[%clk 0:02:50]} 6. Bg5 {[%clk 0:02:40]}  Nf6 {[%clk 0:02:26]} 7. dxe5 {[%clk 0:02:39]}  Nxe5 {[%clk 0:02:27]} 8. Nxe5 {[%clk 0:02:39]}  dxe5 {[%clk 0:02:21]} 9. Qxd8+ {[%clk 0:02:34]}  Kxd8 {[%clk 0:02:22]} 10. Nd5 {[%clk 0:02:31]}  h6 {[%clk 0:02:09]} 11. Bxf6+ {[%clk 0:02:31]}  Bxf6 {[%clk 0:02:09]} 12. Nxf6 {[%clk 0:02:31]}  c6 {[%clk 0:02:10]} 13. Ne4 {[%clk 0:02:29]}  Kc7 {[%clk 0:02:08]} 14. O-O-O {[%clk 0:02:29]}  Be6 {[%clk 0:02:09]} 15. e3 {[%clk 0:02:28]}  Rad8 {[%clk 0:02:08]} 16. Rxd8 {[%clk 0:02:26]}  Rxd8 {[%clk 0:02:09]} 17. Be2 {[%clk 0:02:25]}  f5 {[%clk 0:02:03]} 18. Nc3 {[%clk 0:02:23]}  e4 {[%clk 0:02:02]} 19. Rd1 {[%clk 0:02:23]}  Re8 {[%clk 0:02:00]} 20. c5 {[%clk 0:02:21]}  b6 {[%clk 0:01:55]} 21. Na4 {[%clk 0:02:19]}  Bb3 {[%clk 0:01:52]} 22. Rd4 {[%clk 0:02:19]}  Re5 {[%clk 0:01:46]} 23. cxb6+ {[%clk 0:02:17]}  axb6 {[%clk 0:01:47]} 24. Rb4 {[%clk 0:02:15]}  Bxa4 {[%clk 0:01:42]} 25. Rxa4 {[%clk 0:02:15]}  Rc5+ {[%clk 0:01:43]} 26. Rc4 {[%clk 0:02:15]}  Rd5 {[%clk 0:01:43]} 27. b4 {[%clk 0:02:12]}  Kd6 {[%clk 0:01:38]} 28. Rd4 {[%clk 0:02:12]}  Rxd4 {[%clk 0:01:38]} 29. exd4 {[%clk 0:02:13]}  Kd5 {[%clk 0:01:39]} 30. a4 {[%clk 0:02:14]}  Kxd4 {[%clk 0:01:35]} 31. a5 {[%clk 0:02:14]}  bxa5 {[%clk 0:01:36]} 32. bxa5 {[%clk 0:02:14]}  Kc5 {[%clk 0:01:37]} 33. g3 {[%clk 0:02:12]}  g5 {[%clk 0:01:36]} 34. Kd2 {[%clk 0:02:13]}  f4 {[%clk 0:01:36]} 35. gxf4 {[%clk 0:02:12]}  gxf4 {[%clk 0:01:37]} 36. Kc3 {[%clk 0:02:12]}  f3 {[%clk 0:01:29]} 37. Bf1 {[%clk 0:02:12]} 1-0


[Site "https://www.chess.com"]

[Event "Titled Tuesday Blitz February 21 Early 2023"]
[White "Todev, Simeon"]
[Black "Spata, German"]
[WhiteFideId "2925133"]
[BlackFideId "113026"]
[WhiteElo "2033"]
[BlackElo "2383"]
[Result "0-1"]
[Round "01"]
[TimeControl "180+2"]
[Date "2023.02.21"]
[WhiteClock "0:00:01"]
[BlackClock "0:00:07"]

1. e4 {[%clk 0:02:43]}  e6 {[%clk 0:02:59]} 2. d4 {[%clk 0:02:41]}  d5 {[%clk 0:02:59]} 3. Nc3 {[%clk 0:02:41]}  dxe4 {[%clk 0:02:57]} 4. Nxe4 {[%clk 0:02:42]}  Nd7 {[%clk 0:02:57]} 5. Nf3 {[%clk 0:02:39]}  Ngf6 {[%clk 0:02:57]} 6. Bd3 {[%clk 0:02:30]}  c5 {[%clk 0:02:56]} 7. O-O {[%clk 0:02:21]}  cxd4 {[%clk 0:02:52]} 8. Nxd4 {[%clk 0:02:19]}  Be7 {[%clk 0:02:52]} 9. Qf3 {[%clk 0:02:13]}  Ne5 {[%clk 0:02:41]} 10. Bb5+ {[%clk 0:02:11]}  Bd7 {[%clk 0:02:37]} 11. Nxf6+ {[%clk 0:02:05]}  Bxf6 {[%clk 0:02:32]} 12. Qxb7 {[%clk 0:01:49]}  O-O {[%clk 0:02:30]} 13. Bf4 {[%clk 0:01:37]}  Rb8 {[%clk 0:02:20]} 14. Qa6 {[%clk 0:01:34]}  Rb6 {[%clk 0:02:11]} 15. Qa4 {[%clk 0:01:31]}  Ng6 {[%clk 0:01:38]} 16. Bxd7 {[%clk 0:00:58]}  Nxf4 {[%clk 0:01:36]} 17. Nb3 {[%clk 0:00:52]}  Bxb2 {[%clk 0:01:27]} 18. Rae1 {[%clk 0:00:37]}  Qc7 {[%clk 0:01:09]} 19. Bb5 {[%clk 0:00:18]}  Rfb8 {[%clk 0:00:53]} 20. Bd3 {[%clk 0:00:17]}  Rb4 {[%clk 0:00:46]} 21. Qa6 {[%clk 0:00:16]}  g6 {[%clk 0:00:37]} 22. Re4 {[%clk 0:00:11]}  Bf6 {[%clk 0:00:23]} 23. Rxb4 {[%clk 0:00:07]}  Rxb4 {[%clk 0:00:24]} 24. Qa3 {[%clk 0:00:07]}  Be7 {[%clk 0:00:20]} 25. Qb2 {[%clk 0:00:06]}  Qc6 {[%clk 0:00:18]} 26. f3 {[%clk 0:00:05]}  a5 {[%clk 0:00:17]} 27. Qe5 {[%clk 0:00:03]}  Bd6 {[%clk 0:00:09]} 28. Qf6 {[%clk 0:00:02]}  a4 {[%clk 0:00:07]} 29. Nd4 {[%clk 0:00:01]}  Qc5 {[%clk 0:00:07]} 0-1


[Site "https://www.chess.com"]

[Event "Titled Tuesday Blitz February 21 Early 2023"]
[White "Arabidze, Meri"]
[Black "Lorenzo De La Riva, Lazaro"]
[WhiteFideId "13604040"]
[BlackFideId "2268809"]
[WhiteElo "2441"]
[BlackElo "2404"]
[Result "1-0"]
[Round "01"]
[TimeControl "180+2"]
[Date "2023.02.21"]
[WhiteClock "0:00:06"]
[BlackClock "0:00:07"]

1. Nf3 {[%clk 0:03:00]}  Nf6 {[%clk 0:02:53]} 2. g3 {[%clk 0:02:58]}  d5 {[%clk 0:02:51]} 3. Bg2 {[%clk 0:02:58]}  e6 {[%clk 0:02:51]} 4. b3 {[%clk 0:02:57]}  c5 {[%clk 0:02:48]} 5. Bb2 {[%clk 0:02:57]}  Be7 {[%clk 0:02:34]} 6. O-O {[%clk 0:02:57]}  O-O {[%clk 0:02:33]} 7. c4 {[%clk 0:02:56]}  d4 {[%clk 0:02:31]} 8. e3 {[%clk 0:02:56]}  Nc6 {[%clk 0:02:30]} 9. exd4 {[%clk 0:02:56]}  cxd4 {[%clk 0:02:29]} 10. Re1 {[%clk 0:02:56]}  Ne8 {[%clk 0:02:28]} 11. Na3 {[%clk 0:02:50]}  f6 {[%clk 0:02:27]} 12. d3 {[%clk 0:02:44]}  e5 {[%clk 0:02:26]} 13. Nc2 {[%clk 0:02:44]}  a5 {[%clk 0:02:24]} 14. a3 {[%clk 0:02:41]}  Nc7 {[%clk 0:02:23]} 15. Qd2 {[%clk 0:02:34]}  Na6 {[%clk 0:02:13]} 16. Rab1 {[%clk 0:02:24]}  Nc5 {[%clk 0:02:07]} 17. Ba1 {[%clk 0:02:18]}  Bf5 {[%clk 0:02:06]} 18. Bf1 {[%clk 0:02:15]}  Qd7 {[%clk 0:02:03]} 19. b4 {[%clk 0:02:12]}  axb4 {[%clk 0:02:02]} 20. axb4 {[%clk 0:02:13]}  Na4 {[%clk 0:01:57]} 21. Nh4 {[%clk 0:01:56]}  Be6 {[%clk 0:01:50]} 22. Bg2 {[%clk 0:01:55]}  g5 {[%clk 0:01:47]} 23. Nf3 {[%clk 0:01:55]}  Bf5 {[%clk 0:01:42]} 24. c5 {[%clk 0:01:48]}  b5 {[%clk 0:01:23]} 25. cxb6 {[%clk 0:01:24]}  Nxb6 {[%clk 0:01:20]} 26. b5 {[%clk 0:01:25]}  Na5 {[%clk 0:01:14]} 27. Nb4 {[%clk 0:01:24]}  Rfc8 {[%clk 0:00:58]} 28. h4 {[%clk 0:01:05]}  h6 {[%clk 0:00:53]} 29. hxg5 {[%clk 0:01:02]}  hxg5 {[%clk 0:00:51]} 30. Nc6 {[%clk 0:00:45]}  Nxc6 {[%clk 0:00:25]} 31. bxc6 {[%clk 0:00:46]}  Qc7 {[%clk 0:00:25]} 32. Bxd4 {[%clk 0:00:37]}  exd4 {[%clk 0:00:24]} 33. Nxd4 {[%clk 0:00:38]}  Bg4 {[%clk 0:00:23]} 34. Nb5 {[%clk 0:00:37]}  Qd8 {[%clk 0:00:21]} 35. c7 {[%clk 0:00:33]}  Qd7 {[%clk 0:00:21]} 36. Bxa8 {[%clk 0:00:31]}  Nxa8 {[%clk 0:00:22]} 37. Qa2+ {[%clk 0:00:26]}  Kg7 {[%clk 0:00:19]} 38. Qa6 {[%clk 0:00:12]}  Rh8 {[%clk 0:00:19]} 39. Qb7 {[%clk 0:00:10]}  Qxd3 {[%clk 0:00:13]} 40. c8=Q {[%clk 0:00:08]}  Bxc8 {[%clk 0:00:12]} 41. Rxe7+ {[%clk 0:00:08]}  Kg6 {[%clk 0:00:12]} 42. Rg7+ {[%clk 0:00:07]}  Kf5 {[%clk 0:00:11]} 43. Nd6+ {[%clk 0:00:05]}  Qxd6 {[%clk 0:00:11]} 44. Rb5+ {[%clk 0:00:05]}  Ke6 {[%clk 0:00:09]} 45. Qe4+ {[%clk 0:00:05]}  Qe5 {[%clk 0:00:08]} 46. Rxe5+ {[%clk 0:00:06]}  fxe5 {[%clk 0:00:09]} 47. Rg6+ {[%clk 0:00:06]}  Kf7 {[%clk 0:00:08]} 48. Rd6 {[%clk 0:00:04]}  Nc7 {[%clk 0:00:06]} 49. Qxe5 {[%clk 0:00:04]}  Bb7 {[%clk 0:00:06]} 50. Qxh8 {[%clk 0:00:04]}  Ke7 {[%clk 0:00:06]} 51. Qd8+ {[%clk 0:00:04]}  Kf7 {[%clk 0:00:06]} 52. Qxc7+ {[%clk 0:00:05]}  Kg8 {[%clk 0:00:07]} 53. Rd8# {[%clk 0:00:06]} 1-0


[Site "https://www.chess.com"]

[Event "Titled Tuesday Blitz February 21 Early 2023"]
[White "Gerbelli Neto, Eduardo"]
[Black "Goroshkov, Maksym"]
[WhiteFideId "2103281"]
[BlackFideId "14142716"]
[WhiteElo "2114"]
[BlackElo "2287"]
[Result "0-1"]
[Round "01"]
[TimeControl "180+2"]
[Date "2023.02.21"]
[WhiteClock "0:00:13"]
[BlackClock "0:01:36"]

1. e4 {[%clk 0:02:58]}  e5 {[%clk 0:03:00]} 2. Nf3 {[%clk 0:02:55]}  d6 {[%clk 0:03:01]} 3. d4 {[%clk 0:02:54]}  Bg4 {[%clk 0:03:02]} 4. dxe5 {[%clk 0:02:53]}  Nd7 {[%clk 0:03:02]} 5. exd6 {[%clk 0:02:53]}  Bxd6 {[%clk 0:03:03]} 6. Be2 {[%clk 0:02:48]}  Ngf6 {[%clk 0:03:04]} 7. Nc3 {[%clk 0:02:47]}  Qe7 {[%clk 0:03:04]} 8. h3 {[%clk 0:02:44]}  Bh5 {[%clk 0:03:04]} 9. O-O {[%clk 0:02:37]}  O-O-O {[%clk 0:03:04]} 10. Nd4 {[%clk 0:02:27]}  Bxe2 {[%clk 0:02:56]} 11. Qxe2 {[%clk 0:02:28]}  Qe5 {[%clk 0:02:53]} 12. Nf3 {[%clk 0:02:27]}  Qe7 {[%clk 0:02:52]} 13. Bg5 {[%clk 0:02:20]}  h6 {[%clk 0:02:52]} 14. Bh4 {[%clk 0:02:20]}  g5 {[%clk 0:02:52]} 15. Bg3 {[%clk 0:02:20]}  Bxg3 {[%clk 0:02:51]} 16. fxg3 {[%clk 0:02:21]}  Rhe8 {[%clk 0:02:51]} 17. Rae1 {[%clk 0:02:20]}  Ne5 {[%clk 0:02:47]} 18. Nxe5 {[%clk 0:02:16]}  Qxe5 {[%clk 0:02:48]} 19. Qf3 {[%clk 0:02:17]}  Re6 {[%clk 0:02:45]} 20. Re2 {[%clk 0:01:53]}  h5 {[%clk 0:02:40]} 21. Rfe1 {[%clk 0:01:44]}  g4 {[%clk 0:02:40]} 22. Qf4 {[%clk 0:01:41]}  gxh3 {[%clk 0:02:32]} 23. Qxe5 {[%clk 0:01:36]}  h2+ {[%clk 0:02:32]} 24. Kxh2 {[%clk 0:01:36]}  Rxe5 {[%clk 0:02:27]} 25. Kh3 {[%clk 0:01:30]}  Rg8 {[%clk 0:02:19]} 26. Rf1 {[%clk 0:01:26]}  Nh7 {[%clk 0:02:16]} 27. Rf5 {[%clk 0:01:22]}  Rge8 {[%clk 0:02:07]} 28. Rxe5 {[%clk 0:01:09]}  Rxe5 {[%clk 0:02:08]} 29. Kh4 {[%clk 0:01:09]}  Nf8 {[%clk 0:02:05]} 30. Rf2 {[%clk 0:01:10]}  Ng6+ {[%clk 0:02:05]} 31. Kh3 {[%clk 0:01:10]}  Re7 {[%clk 0:02:04]} 32. Rf5 {[%clk 0:01:08]}  c6 {[%clk 0:02:04]} 33. Rxh5 {[%clk 0:01:07]}  Ne5 {[%clk 0:02:03]} 34. Rh8+ {[%clk 0:01:05]}  Kc7 {[%clk 0:02:03]} 35. Ne2 {[%clk 0:01:04]}  Nc4 {[%clk 0:02:02]} 36. b3 {[%clk 0:01:01]}  Ne3 {[%clk 0:02:01]} 37. Rh7 {[%clk 0:00:58]}  Nxc2 {[%clk 0:01:59]} 38. Kg4 {[%clk 0:00:57]}  Rxe4+ {[%clk 0:01:59]} 39. Kf3 {[%clk 0:00:57]}  Re3+ {[%clk 0:01:59]} 40. Kf2 {[%clk 0:00:57]}  Re7 {[%clk 0:01:59]} 41. Nf4 {[%clk 0:00:55]}  Nd4 {[%clk 0:01:59]} 42. g4 {[%clk 0:00:53]}  Kb6 {[%clk 0:01:58]} 43. g5 {[%clk 0:00:46]}  Re5 {[%clk 0:01:57]} 44. Rxf7 {[%clk 0:00:42]}  Rxg5 {[%clk 0:01:57]} 45. Nd3 {[%clk 0:00:40]}  Nb5 {[%clk 0:01:49]} 46. Kf3 {[%clk 0:00:30]}  Nd4+ {[%clk 0:01:49]} 47. Kf2 {[%clk 0:00:28]}  Ra5 {[%clk 0:01:48]} 48. Nb4 {[%clk 0:00:21]}  Nc2 {[%clk 0:01:34]} 49. Nxc2 {[%clk 0:00:13]}  Rxa2 {[%clk 0:01:34]} 50. g4 {[%clk 0:00:14]}  Rxc2+ {[%clk 0:01:35]} 51. Ke3 {[%clk 0:00:15]}  Rc3+ {[%clk 0:01:35]} 52. Ke4 {[%clk 0:00:15]}  Rxb3 {[%clk 0:01:35]} 53. g5 {[%clk 0:00:15]}  Rg3 {[%clk 0:01:36]} 54. Kf4 {[%clk 0:00:14]}  Rg1 {[%clk 0:01:35]} 55. Kf5 {[%clk 0:00:13]}  a5 {[%clk 0:01:34]} 56. g6 {[%clk 0:00:13]}  a4 {[%clk 0:01:35]} 57. g7 {[%clk 0:00:14]}  a3 {[%clk 0:01:35]} 58. Kf6 {[%clk 0:00:14]}  a2 {[%clk 0:01:36]} 59. Rf8 {[%clk 0:00:13]}  a1=Q+ {[%clk 0:01:36]} 0-1


[Site "https://www.chess.com"]

[Event "Titled Tuesday Blitz February 21 Early 2023"]
[White "Ozates, Tuna"]
[Black "Tsyhanchuk, Stanislav"]
[WhiteFideId "6354521"]
[BlackFideId "13505130"]
[WhiteElo "2251"]
[BlackElo "2273"]
[Result "1-0"]
[Round "01"]
[TimeControl "180+2"]
[Date "2023.02.21"]
[WhiteClock "0:01:15"]
[BlackClock "0:00:11"]

1. d4 {[%clk 0:02:59]}  Nf6 {[%clk 0:02:59]} 2. Bg5 {[%clk 0:02:59]}  Ne4 {[%clk 0:02:58]} 3. Bf4 {[%clk 0:02:59]}  d5 {[%clk 0:02:58]} 4. e3 {[%clk 0:02:57]}  Bf5 {[%clk 0:02:54]} 5. c4 {[%clk 0:02:55]}  c6 {[%clk 0:02:50]} 6. Qb3 {[%clk 0:02:53]}  Qa5+ {[%clk 0:02:00]} 7. Nc3 {[%clk 0:02:51]}  Nxc3 {[%clk 0:02:00]} 8. bxc3 {[%clk 0:02:51]}  Nd7 {[%clk 0:01:58]} 9. Nf3 {[%clk 0:02:44]}  g6 {[%clk 0:01:46]} 10. Be2 {[%clk 0:02:43]}  Bg7 {[%clk 0:01:43]} 11. O-O {[%clk 0:02:44]}  dxc4 {[%clk 0:01:43]} 12. Bxc4 {[%clk 0:02:43]}  O-O {[%clk 0:01:42]} 13. Qxb7 {[%clk 0:02:36]}  Nb6 {[%clk 0:01:20]} 14. Bb3 {[%clk 0:02:05]}  Be4 {[%clk 0:00:57]} 15. Qxe7 {[%clk 0:01:50]}  Bxf3 {[%clk 0:00:42]} 16. gxf3 {[%clk 0:01:49]}  Qxc3 {[%clk 0:00:39]} 17. Rfc1 {[%clk 0:01:48]}  Qa5 {[%clk 0:00:33]} 18. Rxc6 {[%clk 0:01:47]}  Qf5 {[%clk 0:00:33]} 19. Qg5 {[%clk 0:01:42]}  Qd7 {[%clk 0:00:24]} 20. Rc7 {[%clk 0:01:37]}  Qe8 {[%clk 0:00:19]} 21. Bd6 {[%clk 0:01:29]}  h6 {[%clk 0:00:18]} 22. Qg3 {[%clk 0:01:21]}  Qd8 {[%clk 0:00:14]} 23. Be7 {[%clk 0:01:15]}  Qb8 {[%clk 0:00:11]} 24. Bxf8 {[%clk 0:01:15]} 1-0


[Site "https://www.chess.com"]

[Event "Titled Tuesday Blitz February 21 Early 2023"]
[White "Toktomushev, Teimur"]
[Black "Skvortsov, Andrei"]
[WhiteFideId "14176726"]
[BlackFideId "24108600"]
[WhiteElo "2239"]
[BlackElo "2313"]
[Result "0-1"]
[Round "01"]
[TimeControl "180+2"]
[Date "2023.02.21"]
[WhiteClock "0:00:01"]
[BlackClock "0:00:16"]

1. d4 {[%clk 0:02:59]}  e6 {[%clk 0:02:57]} 2. c4 {[%clk 0:02:59]}  Nf6 {[%clk 0:02:56]} 3. Nf3 {[%clk 0:02:58]}  d5 {[%clk 0:02:54]} 4. e3 {[%clk 0:02:58]}  Bb4+ {[%clk 0:02:47]} 5. Bd2 {[%clk 0:02:53]}  Bxd2+ {[%clk 0:02:45]} 6. Qxd2 {[%clk 0:02:53]}  O-O {[%clk 0:02:43]} 7. Nc3 {[%clk 0:02:54]}  Nc6 {[%clk 0:02:37]} 8. Bd3 {[%clk 0:02:42]}  Qe7 {[%clk 0:02:18]} 9. O-O {[%clk 0:02:35]}  dxc4 {[%clk 0:02:16]} 10. Bxc4 {[%clk 0:02:34]}  e5 {[%clk 0:02:16]} 11. Nd5 {[%clk 0:02:19]}  Nxd5 {[%clk 0:02:14]} 12. Bxd5 {[%clk 0:02:20]}  exd4 {[%clk 0:02:13]} 13. exd4 {[%clk 0:02:01]}  Qd6 {[%clk 0:02:05]} 14. Bb3 {[%clk 0:01:42]}  Ne7 {[%clk 0:02:05]} 15. Rfe1 {[%clk 0:01:27]}  Ng6 {[%clk 0:01:57]} 16. Ne5 {[%clk 0:01:16]}  Bd7 {[%clk 0:01:43]} 17. Rad1 {[%clk 0:00:48]}  Rad8 {[%clk 0:01:19]} 18. Qg5 {[%clk 0:00:41]}  Bc8 {[%clk 0:01:17]} 19. f4 {[%clk 0:00:20]}  Nxe5 {[%clk 0:00:47]} 20. dxe5 {[%clk 0:00:12]}  Qb6+ {[%clk 0:00:47]} 21. Kh1 {[%clk 0:00:12]}  Rxd1 {[%clk 0:00:45]} 22. Rxd1 {[%clk 0:00:13]}  Be6 {[%clk 0:00:44]} 23. Rd8 {[%clk 0:00:07]}  c5 {[%clk 0:00:21]} 24. Rxf8+ {[%clk 0:00:07]}  Kxf8 {[%clk 0:00:20]} 25. Bxe6 {[%clk 0:00:07]}  fxe6 {[%clk 0:00:19]} 26. h4 {[%clk 0:00:06]}  h6 {[%clk 0:00:18]} 27. Qg6 {[%clk 0:00:05]}  Qxb2 {[%clk 0:00:17]} 28. Qxe6 {[%clk 0:00:03]}  Qc1+ {[%clk 0:00:18]} 29. Kh2 {[%clk 0:00:04]}  Qxf4+ {[%clk 0:00:19]} 30. g3 {[%clk 0:00:04]}  Qd4 {[%clk 0:00:17]} 31. Qc8+ {[%clk 0:00:04]}  Ke7 {[%clk 0:00:17]} 32. Qxb7+ {[%clk 0:00:04]}  Ke6 {[%clk 0:00:17]} 33. Qxg7 {[%clk 0:00:03]}  Qf2+ {[%clk 0:00:16]} 34. Kh3 {[%clk 0:00:03]}  Qf5+ {[%clk 0:00:17]} 35. Kh2 {[%clk 0:00:03]}  h5 {[%clk 0:00:16]} 36. Qxa7 {[%clk 0:00:02]}  Qxe5 {[%clk 0:00:15]} 37. Qb6+ {[%clk 0:00:03]}  Kf5 {[%clk 0:00:15]} 38. Qb1+ {[%clk 0:00:02]}  Qe4 {[%clk 0:00:12]} 39. Qf1+ {[%clk 0:00:02]}  Ke5 {[%clk 0:00:12]} 40. Qa1+ {[%clk 0:00:03]}  Qd4 {[%clk 0:00:12]} 41. Qe1+ {[%clk 0:00:03]}  Kd5 {[%clk 0:00:12]} 42. a3 {[%clk 0:00:03]}  c4 {[%clk 0:00:13]} 43. Qh1+ {[%clk 0:00:03]}  Qe4 {[%clk 0:00:12]} 44. Qc1 {[%clk 0:00:02]}  Qe2+ {[%clk 0:00:12]} 45. Kh3 {[%clk 0:00:02]}  Qg4+ {[%clk 0:00:12]} 46. Kh2 {[%clk 0:00:02]}  Qe2+ {[%clk 0:00:11]} 47. Kh3 {[%clk 0:00:02]}  Qe5 {[%clk 0:00:12]} 48. Qd1+ {[%clk 0:00:02]}  Kc5 {[%clk 0:00:11]} 49. Qg1+ {[%clk 0:00:02]}  Qd4 {[%clk 0:00:11]} 50. Qc1 {[%clk 0:00:02]}  c3 {[%clk 0:00:11]} 51. Qg5+ {[%clk 0:00:02]}  Qd5 {[%clk 0:00:12]} 52. Qe3+ {[%clk 0:00:02]}  Kc4 {[%clk 0:00:12]} 53. Qe2+ {[%clk 0:00:02]}  Kb3 {[%clk 0:00:12]} 54. Qa6 {[%clk 0:00:01]}  Qf5+ {[%clk 0:00:12]} 55. Kh2 {[%clk 0:00:01]}  Qf2+ {[%clk 0:00:11]} 56. Kh3 {[%clk 0:00:02]}  Qf5+ {[%clk 0:00:12]} 57. Kh2 {[%clk 0:00:02]}  c2 {[%clk 0:00:12]} 58. Qb6+ {[%clk 0:00:02]}  Ka2 {[%clk 0:00:13]} 59. Qe3 {[%clk 0:00:01]}  Kb1 {[%clk 0:00:13]} 60. Qb3+ {[%clk 0:00:01]}  Ka1 {[%clk 0:00:13]} 61. Qc3+ {[%clk 0:00:01]}  Ka2 {[%clk 0:00:14]} 62. Qc4+ {[%clk 0:00:01]}  Kxa3 {[%clk 0:00:14]} 63. Qc3+ {[%clk 0:00:02]}  Ka2 {[%clk 0:00:15]} 64. Qc4+ {[%clk 0:00:02]}  Kb2 {[%clk 0:00:15]} 65. Qb4+ {[%clk 0:00:03]}  Ka1 {[%clk 0:00:15]} 66. Qc3+ {[%clk 0:00:03]}  Kb1 {[%clk 0:00:16]} 67. Qb3+ {[%clk 0:00:02]}  Kc1 {[%clk 0:00:16]} 68. Qe3+ {[%clk 0:00:01]}  Kd1 {[%clk 0:00:17]} 69. Qg1+ {[%clk 0:00:01]}  Ke2 {[%clk 0:00:16]} 0-1


[Site "https://www.chess.com"]

[Event "Titled Tuesday Blitz February 21 Early 2023"]
[White "Fajdetic, Hrvoje"]
[Black "Sadykov, Ramil"]
[WhiteFideId "14501945"]
[BlackFideId "24113590"]
[WhiteElo "2151"]
[BlackElo "2345"]
[Result "0-1"]
[Round "01"]
[TimeControl "180+2"]
[Date "2023.02.21"]
[WhiteClock "0:00:01"]
[BlackClock "0:00:45"]

1. d4 {[%clk 0:02:54]}  Nf6 {[%clk 0:02:44]} 2. Bf4 {[%clk 0:02:52]}  d5 {[%clk 0:02:38]} 3. e3 {[%clk 0:02:52]}  c5 {[%clk 0:02:36]} 4. Nc3 {[%clk 0:02:52]}  cxd4 {[%clk 0:02:33]} 5. exd4 {[%clk 0:02:52]}  Bg4 {[%clk 0:02:33]} 6. f3 {[%clk 0:02:49]}  Bd7 {[%clk 0:02:26]} 7. Bd3 {[%clk 0:02:47]}  Qb6 {[%clk 0:02:17]} 8. Nge2 {[%clk 0:02:35]}  Nc6 {[%clk 0:02:12]} 9. a3 {[%clk 0:01:29]}  Nxd4 {[%clk 0:01:59]} 10. Be3 {[%clk 0:01:12]}  e5 {[%clk 0:01:53]} 11. Nxd4 {[%clk 0:00:47]}  exd4 {[%clk 0:01:50]} 12. Bf2 {[%clk 0:00:47]}  Bc5 {[%clk 0:01:44]} 13. Ne2 {[%clk 0:00:47]}  a5 {[%clk 0:01:38]} 14. O-O {[%clk 0:00:37]}  O-O {[%clk 0:01:33]} 15. Kh1 {[%clk 0:00:36]}  Qxb2 {[%clk 0:01:23]} 16. Rb1 {[%clk 0:00:31]}  Qxa3 {[%clk 0:01:22]} 17. Rxb7 {[%clk 0:00:31]}  Rfb8 {[%clk 0:01:08]} 18. Rxb8+ {[%clk 0:00:27]}  Rxb8 {[%clk 0:01:09]} 19. Bxd4 {[%clk 0:00:27]}  Bxd4 {[%clk 0:01:07]} 20. Nxd4 {[%clk 0:00:28]}  a4 {[%clk 0:01:05]} 21. Bf5 {[%clk 0:00:13]}  Bxf5 {[%clk 0:00:54]} 22. Nxf5 {[%clk 0:00:14]}  g6 {[%clk 0:00:49]} 23. Qd4 {[%clk 0:00:12]}  Qb2 {[%clk 0:00:46]} 24. Qxb2 {[%clk 0:00:02]}  Rxb2 {[%clk 0:00:46]} 25. Nd4 {[%clk 0:00:01]}  a3 {[%clk 0:00:45]} 0-1


[Site "https://www.chess.com"]